bitfinex/quotes_BTCUSD_20250830
["timestamp","ask_amount","ask_price","bid_price","bid_amount"]
[1756541072530,0.33795264,108700.0,108690.0,0.035917]
[1756541072745,1.19682248,108700.0,108690.0,0.035917]
[1756541073728,1.21904095,108700.0,108690.0,0.035917]
[1756541075133,1.19682248,108700.0,108690.0,0.035917]
[1756541078444,1.19682248,108700.0,108690.0,0.00826]
[1756541078646,1.22448248,108700.0,108690.0,0.00826]
[1756541080766,0.36561264,108700.0,108690.0,0.00826]
[1756541081095,1.22448248,108700.0,108690.0,0.00826]
[1756541081511,1.3127788,108700.0,108690.0,0.00826]
[1756541081723,1.3127788,108700.0,108690.0,0.0061]
[1756541082541,1.3127788,108700.0,108690.0,0.0041]
[1756541083342,1.3127788,108700.0,108690.0,0.0031]
[1756541084162,0.18400956,108690.0,108680.0,0.027661]
[1756541084362,0.76740448,108690.0,108680.0,0.030631]
[1756541084563,0.76740448,108690.0,108680.0,0.032611]
[1756541084719,0.81040514,108690.0,108680.0,0.032611]
[1756541084927,0.81040514,108690.0,108680.0,0.21663749]
[1756541085375,0.81040514,108690.0,108680.0,0.21763749]
[1756541085983,0.82889171,108690.0,108680.0,0.21763749]
[1756541086203,0.82889171,108690.0,108680.0,0.21963749]
[1756541086411,0.67493171,108690.0,108680.0,0.21963749]
[1756541088029,0.63193105,108690.0,108680.0,0.21963749]
[1756541089043,0.63193105,108690.0,108680.0,0.189531]
[1756541090112,0.20249613,108690.0,108680.0,0.189531]
[1756541090308,0.63193105,108690.0,108680.0,0.189531]
[1756541092945,0.20249613,108690.0,108680.0,0.37355749]
[1756541093149,0.63193105,108690.0,108680.0,0.37355749]
[1756541093899,0.63193105,108690.0,108680.0,0.189531]
[1756541095909,0.63193105,108690.0,108680.0,0.37355749]
[1756541098429,0.63193105,108690.0,108680.0,0.189531]
[1756541099063,0.78585105,108690.0,108680.0,0.189531]
[1756541100435,0.35641613,108690.0,108680.0,0.37355749]
[1756541100634,0.78585105,108690.0,108680.0,0.37355749]
[1756541100959,0.63193105,108690.0,108680.0,0.37355749]
[1756541103004,0.78585105,108690.0,108680.0,0.37355749]
[1756541103865,0.78585105,108690.0,108680.0,0.189531]
[1756541105517,0.35641613,108690.0,108680.0,0.189531]
[1756541105783,0.78585105,108690.0,108680.0,0.189531]
[1756541107771,0.78585105,108690.0,108680.0,0.035611]
[1756541109693,0.20249613,108690.0,108680.0,0.21963749]
[1756541109899,0.63193105,108690.0,108680.0,0.21963749]
[1756541110953,0.15392,108690.0,108680.0,0.21963749]
[1756541111112,0.35427756,108690.0,108680.0,0.21963749]
[1756541111352,0.62979248,108690.0,108680.0,0.21963749]
[1756541112277,0.62979248,108690.0,108680.0,0.23807749]
[1756541112511,0.62979248,108690.0,108680.0,0.21963749]
[1756541113234,0.78371248,108690.0,108680.0,0.21963749]
[1756541118285,0.35427756,108690.0,108680.0,0.21963749]
[1756541118581,0.78371248,108690.0,108680.0,0.21963749]
[1756541119548,0.35427756,108690.0,108680.0,0.21963749]
[1756541119766,0.78371248,108690.0,108680.0,0.21963749]
[1756541119964,0.44578292,108690.0,108680.0,0.21963749]
[1756541120716,0.62979248,108690.0,108680.0,0.21963749]
[1756541121466,0.20035756,108690.0,108680.0,0.21963749]
[1756541121765,0.62979248,108690.0,108680.0,0.21963749]
[1756541123362,0.6273543,108690.0,108680.0,0.21963749]
[1756541123966,0.7812343,108690.0,108680.0,0.21963749]
[1756541126233,0.35179938,108690.0,108680.0,0.21963749]
[1756541126402,0.7812343,108690.0,108680.0,0.21963749]
[1756541130263,0.35179938,108690.0,108680.0,0.21963749]
[1756541130468,0.7812343,108690.0,108680.0,0.21963749]
[1756541138650,0.35179938,108690.0,108680.0,0.21963749]
[1756541139072,0.7812343,108690.0,108680.0,0.21963749]
[1756541141025,0.35179938,108690.0,108680.0,0.21963749]
[1756541144349,0.35018921,108690.0,108680.0,0.21963749]
[1756541146018,0.35018921,108690.0,108680.0,0.37351749]
[1756541149210,0.35018921,108690.0,108680.0,0.21963749]
[1756541149427,0.35018921,108690.0,108680.0,0.37347749]
[1756541149878,0.35018921,108690.0,108680.0,0.189451]
[1756541150090,0.35018921,108690.0,108680.0,0.035611]
[1756541151175,0.35018921,108690.0,108680.0,0.21963749]
[1756541151802,0.35018921,108690.0,108680.0,0.189451]
[1756541152012,0.35018921,108690.0,108680.0,0.37347749]
[1756541152396,0.77962413,108690.0,108680.0,0.37347749]
[1756541154424,0.77962413,108690.0,108680.0,0.189451]
[1756541154834,0.77962413,108690.0,108680.0,0.37347749]
[1756541155549,0.35018921,108690.0,108680.0,0.37347749]
[1756541155757,0.77962413,108690.0,108680.0,0.37347749]
[1756541156394,0.77962413,108690.0,108680.0,0.189451]
[1756541158470,0.77962413,108690.0,108680.0,0.035611]
[1756541161244,0.35018921,108690.0,108680.0,0.035611]
[1756541161439,0.35018921,108690.0,108680.0,0.21963749]
[1756541161918,0.35018921,108690.0,108680.0,0.035611]
[1756541162642,0.35018921,108690.0,108680.0,0.21963749]
[1756541164454,0.35018921,108690.0,108680.0,0.035611]
[1756541166462,0.37395863,108690.0,108680.0,0.033631]
[1756541166680,0.37395863,108690.0,108680.0,0.035771]
[1756541167333,0.35018921,108690.0,108680.0,0.035771]
[1756541168641,0.77962413,108690.0,108680.0,0.035771]
[1756541170721,0.35018921,108690.0,108680.0,0.035771]
[1756541170964,0.77962413,108690.0,108680.0,0.035771]
[1756541171742,0.77962413,108690.0,108680.0,0.054211]
[1756541171946,0.77962413,108690.0,108680.0,0.035771]
[1756541175774,0.77962413,108690.0,108680.0,0.030661]
[1756541175775,0.86792045,108690.0,108680.0,0.030661]
[1756541176578,1.29735537,108690.0,108680.0,0.029661]
[1756541176729,1.65462707,108690.0,108680.0,0.002]
[1756541176926,1.25285515,108690.0,108680.0,0.002]
[1756541177359,1.23558345,108690.0,108680.0,0.002]
[1756541177554,0.18402649,108680.0,108670.0,0.030864]
[1756541177757,1.19669633,108680.0,108670.0,0.030864]
[1756541177978,1.28499265,108680.0,108670.0,0.030864]
[1756541178382,1.28499265,108680.0,108670.0,0.027664]
[1756541178562,0.18404343,108670.0,108660.0,0.157]
[1756541178772,0.76727835,108670.0,108660.0,0.00534]
[1756541179108,0.76727835,108670.0,108660.0,0.030866]
[1756541179788,0.76727835,108670.0,108660.0,0.03134194]
[1756541180958,0.54185499,108670.0,108660.0,0.03134194]
[1756541181200,0.72589842,108670.0,108660.0,0.03134194]
[1756541181408,0.57209842,108670.0,108660.0,0.03134194]
[1756541181720,0.72589842,108670.0,108660.0,0.03234194]
[1756541182512,0.33784343,108670.0,108660.0,0.03234194]
[1756541182943,0.76727835,108670.0,108660.0,0.03234194]
[1756541186067,0.80658852,108670.0,108660.0,0.03234194]
[1756541186424,0.76727835,108670.0,108660.0,0.03234194]
[1756541190021,0.61347835,108670.0,108660.0,0.03234194]
[1756541190232,0.76731835,108670.0,108660.0,0.03234194]
[1756541190682,0.76731835,108670.0,108660.0,0.03447194]
[1756541191035,0.18404343,108670.0,108660.0,0.03447194]
[1756541191241,0.76731835,108670.0,108660.0,0.21853231]
[1756541191855,0.76731835,108670.0,108660.0,0.03447194]
[1756541194748,0.33788343,108670.0,108660.0,0.03447194]
[1756541194953,0.76731835,108670.0,108660.0,0.03447194]
[1756541196550,0.85561467,108670.0,108660.0,0.03447194]
[1756541196937,0.76731835,108670.0,108660.0,0.03447194]
[1756541199752,0.33788343,108670.0,108660.0,0.03447194]
[1756541199949,0.76731835,108670.0,108660.0,0.03447194]
[1756541204190,0.76727835,108670.0,108660.0,0.03447194]
[1756541207725,0.76727835,108670.0,108660.0,0.03234194]
[1756541209756,0.33784343,108670.0,108660.0,0.03234194]
[1756541209964,0.76727835,108670.0,108660.0,0.03234194]
[1756541210766,0.76727835,108670.0,108660.0,0.03450194]
[1756541211373,0.85557467,108670.0,108660.0,0.03450194]
[1756541211608,0.76727835,108670.0,108660.0,0.03450194]
[1756541213302,0.61347835,108670.0,108660.0,0.03450194]
[1756541213509,0.76727835,108670.0,108660.0,0.03450194]
[1756541214113,0.22397621,108690.0,108660.0,1.17961517]
[1756541214313,0.01229965,108690.0,108680.0,0.18402649]
[1756541214512,0.34697449,108710.0,108690.0,0.18400335]
[1756541214718,0.36424975,108710.0,108690.0,0.33780335]
[1756541214921,0.70424975,108710.0,108700.0,0.00216]
[1756541215118,0.47600271,108710.0,108700.0,0.00216]
[1756541215368,0.66001696,108710.0,108700.0,0.00509]
[1756541215495,0.54128951,108710.0,108700.0,0.00509]
[1756541215744,0.56588283,108710.0,108700.0,0.00509]
[1756541215949,0.99531775,108710.0,108700.0,0.00509]
[1756541216148,1.14911775,108710.0,108700.0,0.00509]
[1756541216570,1.14908801,108710.0,108700.0,0.00509]
[1756541216771,1.15008801,108710.0,108700.0,0.00509]
[1756541217262,1.13284249,108710.0,108700.0,0.00509]
[1756541218858,0.54040879,108710.0,108700.0,0.18908264]
[1756541219033,0.69420879,108710.0,108700.0,0.00509]
[1756541219236,1.12364371,108710.0,108700.0,0.00509]
[1756541220159,0.01639454,108710.0,108700.0,0.28206265]
[1756541220374,0.0004,108720.0,108710.0,0.18397571]
[1756541220592,0.0004,108720.0,108710.0,1.29178556]
[1756541220833,0.0004,108730.0,108720.0,0.18395879]
[1756541221046,0.0004,108730.0,108720.0,1.13873864]
[1756541221251,0.0004,108730.0,108720.0,1.14089864]
[1756541221454,0.0004,108730.0,108720.0,0.86402117]
[1756541221662,0.0004,108730.0,108720.0,0.89166817]
[1756541222474,0.0004,108730.0,108720.0,0.89266817]
[1756541222683,0.0004,108730.0,108720.0,0.80962817]
[1756541222886,0.0004,108730.0,108720.0,0.96438817]
[1756541223483,0.0004,108730.0,108720.0,0.96338817]
[1756541223682,0.0004,108730.0,108720.0,0.96538817]
[1756541224246,0.0004,108730.0,108720.0,0.96438817]
[1756541224649,0.0004,108730.0,108720.0,1.39458054]
[1756541224855,0.0004,108730.0,108720.0,0.96638817]
[1756541225222,0.0004,108730.0,108720.0,1.39358054]
[1756541225421,0.0004,108750.0,108740.0,0.18392495]
[1756541225537,0.0002,108760.0,108750.0,0.54484686]
[1756541225736,0.0002,108770.0,108760.0,0.18389113]
[1756541225958,0.0002,108770.0,108760.0,0.93263351]
[1756541226161,0.0002,108770.0,108760.0,0.93479351]
[1756541226972,0.0002,108770.0,108760.0,0.93679351]
[1756541227246,0.0002,108770.0,108760.0,0.93726939]
[1756541227454,0.0002,108770.0,108760.0,0.78338939]
[1756541227590,0.0002,108770.0,108760.0,0.93722939]
[1756541228010,0.0002,108770.0,108760.0,0.93922939]
[1756541229138,0.0002,108770.0,108760.0,0.93918939]
[1756541229551,0.0002,108770.0,108760.0,0.95445839]
[1756541230354,0.0002,108770.0,108760.0,0.52626602]
[1756541230550,0.0002,108770.0,108760.0,0.52622602]
[1756541231039,0.0002,108770.0,108760.0,0.95441839]
[1756541232014,0.0002,108770.0,108760.0,0.37246602]
[1756541232219,0.0002,108770.0,108760.0,0.95449839]
[1756541233124,0.0002,108770.0,108760.0,1.31543721]
[1756541233335,0.0002,108780.0,108770.0,1.40119779]
[1756541233532,0.00144917,108790.0,108780.0,0.52385732]
[1756541233733,0.00144917,108790.0,108780.0,1.70283207]
[1756541233975,0.00144917,108790.0,108780.0,1.1208397]
[1756541234197,0.00144917,108790.0,108780.0,1.2747197]
[1756541234406,0.00144917,108790.0,108780.0,1.72753389]
[1756541235649,0.00144917,108790.0,108780.0,1.81897389]
[1756541236069,0.00144917,108790.0,108780.0,1.82297389]
[1756541236241,0.00144917,108790.0,108780.0,1.82597389]
[1756541236901,0.00144917,108790.0,108780.0,1.39778152]
[1756541239265,0.00144917,108790.0,108780.0,1.82597389]
[1756541239473,0.00144917,108790.0,108780.0,1.82593389]
[1756541240333,1e-08,108800.0,108790.0,0.63297161]
[1756541240544,1e-08,108800.0,108790.0,0.30100925]
[1756541240754,1e-08,108800.0,108790.0,0.97671162]
[1756541240975,1e-08,108800.0,108790.0,0.82275162]
[1756541241186,1e-08,108800.0,108790.0,1.37671162]
[1756541241396,1e-08,108800.0,108790.0,0.97671162]
[1756541241632,1e-08,108800.0,108790.0,0.82275162]
[1756541241842,1e-08,108800.0,108790.0,1.37679162]
[1756541242050,1e-08,108800.0,108790.0,1.38179162]
[1756541243292,1e-08,108810.0,108800.0,0.18382352]
[1756541243536,1e-08,108810.0,108800.0,1.76805709]
[1756541243761,1e-08,108810.0,108800.0,1.91160709]
[1756541243966,8e-05,108840.0,108830.0,0.61196522]
[1756541244176,8e-05,108840.0,108830.0,0.92970523]
[1756541244383,8e-05,108840.0,108830.0,0.95600405]
[1756541244592,8e-05,108840.0,108830.0,0.95647993]
[1756541244802,8e-05,108840.0,108830.0,0.98417393]
[1756541245225,8e-05,108840.0,108830.0,0.98617393]
[1756541245429,0.00206,108840.0,108830.0,0.38288274]
[1756541245648,0.00206,108840.0,108830.0,1.05663511]
[1756541245860,0.0035,108840.0,108830.0,0.34986989]
[1756541246117,0.00206,108840.0,108830.0,0.53364274]
[1756541246324,0.00206,108840.0,108830.0,0.53264274]
[1756541246486,0.00206,108840.0,108830.0,0.96083511]
[1756541246894,0.00206,108840.0,108830.0,0.52964274]
[1756541247519,0.18581597,108840.0,108830.0,0.52964274]
[1756541248246,0.18581597,108840.0,108830.0,0.53064274]
[1756541249245,0.00206,108840.0,108830.0,0.53064274]
[1756541249586,0.00206,108840.0,108830.0,0.53164274]
[1756541251627,0.01913922,108840.0,108830.0,0.53164274]
[1756541252206,0.0191487,108840.0,108830.0,0.53164274]
[1756541254617,0.0191487,108840.0,108830.0,0.53489274]
[1756541256525,0.0191487,108840.0,108830.0,0.53700274]
[1756541258723,0.0191487,108840.0,108830.0,0.50938874]
[1756541260303,0.0171687,108840.0,108830.0,0.50938874]
[1756541260533,0.0191487,108840.0,108830.0,0.50938874]
[1756541261083,0.00206,108840.0,108830.0,0.50938874]
[1756541261348,0.01922038,108840.0,108830.0,0.50938874]
[1756541262406,0.63116872,108840.0,108830.0,0.00247588]
[1756541262613,1.48249214,108840.0,108830.0,0.00247588]
[1756541262811,1.57547215,108840.0,108830.0,0.00247588]
[1756541263031,1.60170005,108840.0,108830.0,0.00247588]
[1756541263254,1.75578005,108840.0,108830.0,0.00247588]
[1756541263409,1.75578005,108840.0,108830.0,0.00147588]
[1756541264127,1.75578005,108840.0,108830.0,0.00047588]
[1756541266862,1.75590005,108840.0,108830.0,0.00047588]
[1756541268429,1.75593131,108840.0,108830.0,0.00047588]
[1756541270088,1.80167666,108840.0,108830.0,0.00047588]
[1756541270258,1.92231666,108840.0,108830.0,0.00047588]
[1756541270460,1.9554704,108840.0,108830.0,0.00047588]
[1756541270754,1.93066387,108840.0,108830.0,0.00047588]
[1756541271183,1.95542033,108840.0,108830.0,0.00047588]
[1756541271655,1.94897854,108840.0,108830.0,0.00047588]
[1756541271823,1.95541645,108840.0,108830.0,0.00047588]
[1756541272226,1.9317869,108840.0,108830.0,0.00047588]
[1756541272441,1.95541473,108840.0,108830.0,0.00047588]
[1756541273291,1.92226099,108840.0,108830.0,0.00047588]
[1756541273751,1.76806099,108840.0,108830.0,0.00047588]
[1756541273904,1.92218099,108840.0,108830.0,0.00047588]
[1756541279067,1.87763842,108840.0,108830.0,0.00047588]
[1756541279599,1.8974119,108840.0,108830.0,0.00047588]
[1756541279968,1.87963842,108840.0,108830.0,0.00047588]
[1756541280168,2.30783079,108840.0,108830.0,0.00047588]
[1756541280385,2.30783079,108840.0,108830.0,1e-08]
[1756541280386,2.35451817,108840.0,108830.0,1e-08]
[1756541280576,2.40451817,108840.0,108830.0,1e-08]
[1756541280981,2.40651817,108840.0,108830.0,1e-08]
[1756541281204,2.40007422,108840.0,108830.0,1e-08]
[1756541281376,2.40249598,108840.0,108830.0,1e-08]
[1756541281795,2.39132824,108840.0,108830.0,1e-08]
[1756541281993,0.18382352,108800.0,108790.0,0.0751443]
[1756541282198,1.12341399,108800.0,108790.0,0.07763024]
[1756541282821,1.12537399,108800.0,108790.0,0.07763024]
[1756541283030,1.12537399,108800.0,108790.0,0.00551594]
[1756541283586,1.64654637,108800.0,108790.0,0.00350594]
[1756541283919,1.218354,108800.0,108790.0,0.00350594]
[1756541284101,1.30665032,108800.0,108790.0,0.00350594]
[1756541284512,1.30665032,108800.0,108790.0,0.00751594]
[1756541284775,1.30665032,108800.0,108790.0,0.00851594]
[1756541286184,1.73484269,108800.0,108790.0,0.00347594]
[1756541286525,1.75722151,108800.0,108790.0,0.00347594]
[1756541286743,1.76365333,108800.0,108790.0,0.00347594]
[1756541287493,1.76365333,108800.0,108790.0,0.00047594]
[1756541287860,1.76465333,108800.0,108790.0,0.00147594]
[1756541288048,1.76465333,108800.0,108790.0,1e-08]
[1756541288049,1.81465333,108800.0,108790.0,1e-08]
[1756541288471,1.81365333,108800.0,108790.0,1e-08]
[1756541288683,1.81565333,108800.0,108790.0,1e-08]
[1756541291801,1.81564676,108800.0,108790.0,1e-08]
[1756541292109,1.66140676,108800.0,108790.0,1e-08]
[1756541292265,1.81416895,108800.0,108790.0,1e-08]
[1756541293467,1.83392592,108800.0,108790.0,1e-08]
[1756541293884,1.67972592,108800.0,108790.0,1e-08]
[1756541294295,1.83392592,108800.0,108790.0,1e-08]
[1756541294496,1.67972592,108800.0,108790.0,1e-08]
[1756541294700,1.83392592,108800.0,108790.0,1e-08]
[1756541297114,1.67972592,108800.0,108790.0,1e-08]
[1756541297313,1.85858214,108800.0,108790.0,1e-08]
[1756541298289,1.70442214,108800.0,108790.0,1e-08]
[1756541298487,1.85858214,108800.0,108790.0,1e-08]
[1756541299312,1.38022516,108790.0,108780.0,0.00303]
[1756541299492,1.829684,108790.0,108780.0,0.00350619]
[1756541299693,1.829684,108790.0,108780.0,0.00549619]
[1756541300547,1.675564,108790.0,108780.0,0.00549619]
[1756541300761,1.829684,108790.0,108780.0,0.00549619]
[1756541301085,1.830684,108790.0,108780.0,0.00549619]
[1756541301843,0.20199195,108790.0,108780.0,0.00549619]
[1756541302042,0.78426432,108790.0,108780.0,0.00549619]
[1756541302249,1.12428573,108790.0,108780.0,0.00549619]
[1756541302786,0.20201336,108790.0,108780.0,0.00549619]
[1756541302998,0.35613336,108790.0,108780.0,0.00549619]
[1756541303207,0.20201336,108790.0,108780.0,0.18935351]
[1756541303412,0.20201336,108790.0,108780.0,0.28233352]
[1756541303413,0.01817294,108790.0,108780.0,0.28233352]
[1756541304478,0.01717294,108790.0,108780.0,0.28233352]
[1756541304895,0.01717294,108790.0,108780.0,0.28433352]
[1756541307667,0.20101336,108790.0,108780.0,0.28433352]
[1756541309213,0.20103686,108790.0,108780.0,0.28433352]
[1756541309645,0.20103686,108790.0,108780.0,0.1004762]
[1756541310254,0.62922923,108790.0,108780.0,0.00749619]
[1756541310482,0.63118923,108790.0,108780.0,0.00749619]
[1756541310693,0.97118923,108790.0,108780.0,0.00247619]
[1756541310893,0.54299686,108790.0,108780.0,0.00247619]
[1756541311316,1.06416924,108790.0,108780.0,0.00247619]
[1756541311600,1.15390556,108790.0,108780.0,0.00047619]
[1756541311829,1.22314556,108790.0,108780.0,0.00047619]
[1756541312019,1.22414556,108790.0,108780.0,0.00047619]
[1756541312430,1.12887166,108790.0,108780.0,0.00047619]
[1756541312668,1.1186528,108790.0,108780.0,0.00047619]
[1756541312844,1.2726928,108790.0,108780.0,0.00047619]
[1756541314279,1.1186528,108790.0,108780.0,0.00047619]
[1756541314493,1.2727328,108790.0,108780.0,0.00047619]
[1756541314702,1.36102912,108790.0,108780.0,0.00047619]
[1756541315531,1.20694912,108790.0,108780.0,0.00047619]
[1756541315751,1.36102912,108790.0,108780.0,0.00047619]
[1756541315952,1.20694912,108790.0,108780.0,0.00047619]
[1756541316121,1.36102912,108790.0,108780.0,0.00047619]
[1756541319106,1.2727328,108790.0,108780.0,0.00047619]
[1756541319528,0.69046043,108790.0,108780.0,0.00358619]
[1756541319675,1.17771279,108790.0,108780.0,0.00557619]
[1756541319876,0.52484042,108790.0,108780.0,0.00557619]
[1756541320089,0.67888042,108790.0,108780.0,0.00557619]
[1756541320315,0.95303279,108790.0,108780.0,0.00557619]
[1756541320511,1.10707279,108790.0,108780.0,0.00557619]
[1756541320720,1.10719279,108790.0,108780.0,0.18943351]
[1756541320921,1.10723279,108790.0,108780.0,0.04290696]
[1756541321263,1.10723279,108790.0,108780.0,0.00557619]
[1756541321601,1.10723279,108790.0,108780.0,0.18943351]
[1756541321602,0.34,108790.0,108780.0,0.18943351]
[1756541321827,0.18384042,108790.0,108780.0,0.18943351]
[1756541322047,0.76617589,108800.0,108780.0,0.18943351]
[1756541322048,0.61201589,108800.0,108780.0,0.19143351]
[1756541322247,1.10621589,108800.0,108790.0,0.00311]
[1756541322455,1.10621589,108800.0,108790.0,0.0051]
[1756541322860,0.52382352,108800.0,108790.0,0.0051]
[1756541323058,1.10621589,108800.0,108790.0,0.0051]
[1756541323279,0.95201589,108800.0,108790.0,0.0051]
[1756541323513,1.10621589,108800.0,108790.0,0.0051]
[1756541323854,1.10721589,108800.0,108790.0,0.0051]
[1756541325642,1.10721589,108800.0,108790.0,0.18894042]
[1756541325643,0.18482352,108800.0,108790.0,0.18894042]
[1756541326068,0.18382352,108800.0,108790.0,0.18894042]
[1756541327285,0.18382352,108800.0,108790.0,0.19094042]
[1756541327995,0.52382089,108810.0,108800.0,0.18382352]
[1756541328189,0.52382089,108810.0,108800.0,0.0051]
[1756541329384,0.52482089,108810.0,108800.0,0.0051]
[1756541330543,0.95301326,108810.0,108800.0,0.0051]
[1756541335777,0.52482089,108810.0,108800.0,0.0051]
[1756541338242,0.52482089,108810.0,108800.0,0.15938]
[1756541338847,0.52382089,108810.0,108800.0,0.15938]
[1756541339045,0.52382089,108810.0,108800.0,0.16038]
[1756541340860,0.52382089,108810.0,108800.0,0.0061]
[1756541341066,0.52382089,108810.0,108800.0,0.16034]
[1756541341268,0.52382089,108810.0,108800.0,0.16334]
[1756541341866,0.52580089,108810.0,108800.0,0.16334]
[1756541342782,0.52580089,108810.0,108800.0,0.0091]
[1756541342989,0.52580089,108810.0,108800.0,0.16334]
[1756541343588,0.52555212,108810.0,108800.0,0.16334]
[1756541344094,0.95374449,108810.0,108800.0,0.16334]
[1756541344307,0.52555212,108810.0,108800.0,0.16334]
[1756541344537,0.95374449,108810.0,108800.0,0.21718724]
[1756541344736,0.52555212,108810.0,108800.0,0.21718724]
[1756541345115,0.95374449,108810.0,108800.0,0.21718724]
[1756541345316,0.95374449,108810.0,108800.0,0.16334]
[1756541345728,0.95374449,108810.0,108800.0,0.0091]
[1756541345910,0.95374449,108810.0,108800.0,0.16342]
[1756541347649,0.52555212,108810.0,108800.0,0.16342]
[1756541347846,0.95374449,108810.0,108800.0,0.16342]
[1756541348143,0.52555212,108810.0,108800.0,0.16342]
[1756541348371,0.95374449,108810.0,108800.0,0.16342]
[1756541348737,0.52555212,108810.0,108800.0,0.16342]
[1756541348938,0.95374449,108810.0,108800.0,0.16342]
[1756541349372,0.95374449,108810.0,108800.0,0.34724352]
[1756541350034,0.52555212,108810.0,108800.0,0.34724352]
[1756541350772,0.52357212,108810.0,108800.0,0.16342]
[1756541351179,0.52555212,108810.0,108800.0,0.16342]
[1756541352326,0.52357212,108810.0,108800.0,0.34724352]
[1756541352675,0.57325245,108820.0,108810.0,0.18380663]
[1756541352884,0.57325245,108820.0,108810.0,0.25974663]
[1756541354965,0.57325245,108820.0,108810.0,0.26174663]
[1756541356568,0.57325245,108820.0,108810.0,0.28937463]
[1756541357417,0.04946271,108820.0,108810.0,0.28937463]
[1756541362939,0.66342482,108820.0,108810.0,0.105568]
[1756541363142,0.66144482,108820.0,108810.0,0.260048]
[1756541363793,0.66144482,108820.0,108810.0,0.44385463]
[1756541365069,0.66144482,108820.0,108810.0,0.28937463]
[1756541365229,0.66144482,108820.0,108810.0,0.44381463]
[1756541367393,0.66144482,108820.0,108810.0,0.28937463]
[1756541367602,0.66144482,108820.0,108810.0,0.44381463]
[1756541368020,0.47765508,108820.0,108810.0,0.44381463]
[1756541368228,0.04946271,108820.0,108810.0,0.44381463]
[1756541368604,0.87769237,108830.0,108810.0,0.44381463]
[1756541368812,1.06149638,108830.0,108810.0,0.44381463]
[1756541369965,0.18378974,108820.0,108810.0,0.44381463]
[1756541370480,0.18378974,108820.0,108810.0,0.44181463]
[1756541371122,1.06249638,108830.0,108810.0,0.44181463]
[1756541371360,1.06249638,108830.0,108810.0,0.44381463]
[1756541371566,1.06149638,108830.0,108810.0,0.44381463]
[1756541372139,1.06149638,108830.0,108810.0,0.44181463]
[1756541372570,1.06249638,108830.0,108810.0,0.44181463]
[1756541373350,0.18378974,108820.0,108810.0,0.44181463]
[1756541373963,0.61198211,108820.0,108810.0,0.44181463]
[1756541374413,0.18378974,108820.0,108810.0,0.44181463]
[1756541374623,0.18378974,108820.0,108810.0,0.44381463]
[1756541379950,0.61198211,108820.0,108810.0,0.44381463]
[1756541380835,0.18378974,108820.0,108810.0,0.44381463]
[1756541381039,0.61198211,108820.0,108810.0,0.44381463]
[1756541381466,0.61136511,108820.0,108810.0,0.44381463]
[1756541383660,0.61136511,108820.0,108810.0,0.44353463]
[1756541386400,0.61136511,108820.0,108810.0,0.44345463]
[1756541389172,1.04092048,108820.0,108810.0,0.100308]
[1756541389406,1.11398841,108820.0,108810.0,0.254348]
[1756541389607,1.04236048,108820.0,108810.0,0.254348]
[1756541391009,1.04092048,108820.0,108810.0,0.254348]
[1756541396269,1.04092048,108820.0,108810.0,0.254508]
[1756541396845,1.49258773,108820.0,108810.0,0.100308]
[1756541397021,1.58088405,108820.0,108810.0,0.22688]
[1756541397931,1.58088405,108820.0,108810.0,0.07268]
[1756541398147,1.58088405,108820.0,108810.0,0.22688]
[1756541398372,1.60851805,108820.0,108810.0,0.22688]
[1756541399014,1.60851805,108820.0,108810.0,0.1562]
[1756541399432,1.59127081,108820.0,108810.0,0.1562]
[1756541399644,1.60850898,108820.0,108810.0,0.1562]
[1756541400322,2.31445761,108820.0,108810.0,0.002]
[1756541400445,2.3796866,108820.0,108810.0,0.002]
[1756541400644,2.3796866,108820.0,108780.0,0.00047619]
[1756541400645,0.18384042,108790.0,108780.0,0.00047619]
[1756541400847,0.18384042,108790.0,108780.0,0.15199619]
[1756541400848,1.56367638,108790.0,108780.0,0.15199619]
[1756541401052,1.73877535,108790.0,108780.0,0.00047619]
[1756541401278,1.77381365,108790.0,108780.0,0.00047619]
[1756541401720,1.66290827,108790.0,108780.0,0.00047619]
[1756541401921,1.87054792,108790.0,108780.0,0.00247619]
[1756541402230,1.84426191,108790.0,108780.0,0.00047619]
[1756541403087,1.68982191,108790.0,108780.0,0.00047619]
[1756541403300,0.6617024,108790.0,108780.0,0.15997619]
[1756541403511,0.95188075,108790.0,108780.0,0.15997619]
[1756541403723,0.52384042,108790.0,108780.0,0.34383351]
[1756541403935,0.18384042,108790.0,108780.0,0.34383351]
[1756541404179,0.18584042,108790.0,108780.0,0.34383351]
[1756541404388,0.18584042,108790.0,108780.0,0.15997619]
[1756541404597,0.61188075,108790.0,108780.0,0.15997619]
[1756541404811,0.69655498,108790.0,108780.0,0.00047619]
[1756541405066,0.69655498,108790.0,108780.0,0.00353619]
[1756541405276,0.69655498,108790.0,108780.0,0.00549619]
[1756541405496,0.63950185,108800.0,108780.0,0.18935351]
[1756541405718,0.18384042,108790.0,108780.0,0.18629351]
[1756541406405,0.18384042,108790.0,108780.0,0.18935351]
[1756541407170,0.18384042,108790.0,108780.0,0.00549619]
[1756541408035,0.61188075,108790.0,108780.0,0.00549619]
[1756541408387,0.42804033,108790.0,108780.0,0.18935351]
[1756541409474,0.52382352,108800.0,108790.0,0.18384042]
[1756541409681,0.95186385,108800.0,108790.0,0.15652]
[1756541409857,0.95186385,108800.0,108790.0,0.34342042]
[1756541410070,0.95186385,108800.0,108790.0,0.15958]
[1756541411028,0.95186385,108800.0,108790.0,0.16258]
[1756541411225,0.95186385,108800.0,108790.0,0.16458]
[1756541416036,0.95384385,108800.0,108790.0,0.16458]
[1756541416249,0.55492497,108800.0,108790.0,0.005]
[1756541416478,0.95528385,108800.0,108790.0,0.005]
[1756541416674,0.97246064,108800.0,108790.0,0.005]
[1756541416873,1.12714064,108800.0,108790.0,0.005]
[1756541417104,1.12714064,108800.0,108790.0,0.003]
[1756541417253,1.12570064,108800.0,108790.0,0.004]
[1756541417456,1.20186334,108800.0,108790.0,0.001]
[1756541417678,0.18384042,108790.0,108780.0,0.03117119]
[1756541417816,0.76656075,108790.0,108780.0,0.03117119]
[1756541418015,0.76656075,108790.0,108780.0,0.03313119]
[1756541418498,0.76854075,108790.0,108780.0,0.03313119]
[1756541418901,0.76854075,108790.0,108780.0,0.03117119]
[1756541419182,0.76854075,108790.0,108780.0,0.02811119]
[1756541419409,0.81103832,108790.0,108780.0,0.03011119]
[1756541419531,1.15103832,108790.0,108780.0,0.03011119]
[1756541419736,1.15103832,108790.0,108780.0,0.00247619]
[1756541419941,0.99635832,108790.0,108780.0,0.00247619]
[1756541420147,1.15111832,108790.0,108780.0,0.00247619]
[1756541420375,1.16974414,108790.0,108780.0,0.00347619]
[1756541420579,1.16974652,108790.0,108780.0,0.00347619]
[1756541421345,1.01354652,108790.0,108780.0,0.00047619]
[1756541421658,1.16830652,108790.0,108780.0,0.00047619]